fUSD/lending_fUSD_20240521
["ID","MTS","AMOUNT","RATE_DAILY","PERIOD"]
[327696366,1716324641551,-500.0,0.0003041,6]
[327696368,1716324641562,-3616.95,0.0003041,6]
[327696371,1716324641573,-500.0,0.0003041,6]
[327696373,1716324641584,-543.51,0.0003041,6]
[327696374,1716324641595,-500.0,0.0003041,6]
[327696375,1716324641606,-500.0,0.0003041,6]
[327696376,1716324641617,-3278.78,0.0003041,6]
[327696377,1716324641629,-953.85,0.0003041,6]
[327696378,1716324641640,-1398.39,0.0003041,6]
[327696379,1716324641651,-500.0,0.0003041,6]
[327696380,1716324641662,-500.0,0.0003041,6]
[327696381,1716324641673,-500.0,0.0003041,6]
[327696382,1716324641684,-500.0,0.0003041,6]
[327696383,1716324641695,-10626.01,0.0003041,6]
[327696384,1716324641706,-500.0,0.0003041,6]
[327696385,1716324641716,-1611.84,0.0003041,6]
[327696386,1716324641727,-500.0,0.0003041,6]
[327696387,1716324641737,-500.0,0.0003041,6]
[327696389,1716324641749,-1193.5,0.0003041,6]
[327696391,1716324641760,-869.64,0.0003041,6]
[327696394,1716324641771,-500.0,0.0003041,6]
[327696396,1716324641782,-500.0,0.0003041,6]
[327696398,1716324641793,-923.44,0.0003041,6]
[327696400,1716324641805,-500.0,0.0003041,6]
[327696402,1716324641815,-500.0,0.0003041,6]
[327696405,1716324641834,-500.0,0.0003041,6]
[327696407,1716324641844,-1447.05,0.0003041,6]
[327696409,1716324641855,-541.79,0.0003041,6]
[327696412,1716324641866,-500.0,0.0003041,6]
[327696414,1716324641877,-500.0,0.0003041,6]
[327696416,1716324641887,-500.0,0.0003041,6]
[327696418,1716324641898,-685.78,0.0003041,6]
[327696420,1716324641910,-841.54,0.0003041,6]
[327696422,1716324641921,-764.15,0.0003041,6]
[327696425,1716324641932,-2967.44,0.0003041,6]
[327696427,1716324641942,-2836.3,0.0003041,6]
[327696429,1716324641954,-527.59,0.0003041,6]
[327696431,1716324641964,-500.0,0.0003041,6]
[327696433,1716324641975,-500.0,0.0003041,6]
[327696435,1716324641986,-1149.3,0.0003041,6]
[327696437,1716324641997,-500.0,0.0003041,6]
[327696439,1716324642007,-500.0,0.0003041,6]
[327696442,1716324642018,-500.0,0.0003041,6]
[327696444,1716324642028,-500.0,0.0003041,6]
[327696446,1716324642039,-1724.81,0.0003041,6]
[327696448,1716324642050,-500.0,0.0003041,6]
[327696450,1716324642060,-500.0,0.0003041,6]
[327696452,1716324642070,-1651.21,0.0003041,6]
[327696454,1716324642082,-500.0,0.0003041,6]
[327696457,1716324642093,-500.0,0.0003041,6]
[327696459,1716324642103,-1442.76,0.0003041,6]
[327696461,1716324642113,-500.0,0.0003041,6]
[327696463,1716324642123,-500.0,0.0003041,6]
[327696465,1716324642133,-500.0,0.0003041,6]
[327696467,1716324642144,-500.0,0.0003041,6]
[327696469,1716324642154,-500.0,0.0003041,6]
[327696471,1716324642165,-500.0,0.0003041,6]
[327696474,1716324642175,-1027.59,0.0003041,6]
[327696476,1716324642185,-606.41,0.0003041,6]
[327696478,1716324642195,-2193.01,0.0003041,6]
[327696480,1716324642206,-1211.05,0.0003041,6]
[327696482,1716324642216,-1203.43,0.0003041,6]
[327696484,1716324642226,-500.0,0.0003041,6]
[327696486,1716324642236,-3743.82,0.0003041,6]
[327696488,1716324642246,-500.0,0.0003041,6]
[327696490,1716324642256,-10059.04,0.0003041,6]
[327696493,1716324642267,-259.67789825,0.0003041,6]
[327696495,1716324642278,-500.0,0.0003041,6]
[327696497,1716324642289,-500.0,0.0003041,6]
[327696499,1716324642300,-500.0,0.0003041,6]
[327696501,1716324642311,-2652.07,0.0003041,6]
[327696503,1716324642322,-1006.7,0.0003041,6]
[327696506,1716324642336,-728.42,0.0003041,6]
[327696508,1716324642346,-500.0,0.0003041,6]
[327696510,1716324642356,-500.0,0.0003041,6]
[327696512,1716324642368,-500.0,0.0003041,6]
[327696514,1716324642378,-798.14,0.0003041,6]
[327696516,1716324642389,-500.0,0.0003041,6]
[327696518,1716324642399,-500.0,0.0003041,6]
[327696520,1716324642410,-500.0,0.0003041,6]
[327696523,1716324642421,-501.66,0.0003041,6]
[327696525,1716324642431,-500.0,0.0003041,6]
[327696527,1716324642441,-2757.81,0.0003041,6]
[327696529,1716324642452,-1440.73,0.0003041,6]
[327696531,1716324642462,-580.74,0.0003041,30]
[327696533,1716324642472,-500.0,0.0003041,6]
[327696535,1716324642483,-611.67,0.0003041,6]
[327696537,1716324642493,-500.0,0.0003041,6]
[327696539,1716324642504,-500.0,0.0003041,6]
[327696541,1716324642518,-500.0,0.0003041,6]
[327696543,1716324642529,-1297.08,0.0003041,6]
[327696546,1716324642539,-500.0,0.0003041,6]
[327696548,1716324642551,-500.0,0.0003041,6]
[327696550,1716324642561,-6825.45,0.0003041,6]
[327696552,1716324642572,-500.0,0.0003041,6]
[327696554,1716324642585,-500.0,0.0003041,6]
[327696556,1716324642598,-886.94,0.0003041,6]
[327696558,1716324642609,-500.0,0.0003041,6]
[327696560,1716324642620,-2699.22,0.0003041,6]
[327696563,1716324642631,-500.0,0.0003041,6]
[327696565,1716324642642,-544.57256603,0.0003041,6]
[327696567,1716324642652,-500.0,0.0003041,6]
[327696569,1716324642663,-25185.97,0.0003041,6]
[327696571,1716324642674,-500.0,0.0003041,6]
[327696573,1716324642683,-500.0,0.0003041,6]
[327696575,1716324642694,-2587.28,0.0003041,6]
[327696577,1716324642706,-500.0,0.0003041,6]
[327696579,1716324642716,-1575.23,0.0003041,6]
[327696581,1716324642727,-1635.8,0.0003041,6]
[327696583,1716324642737,-500.0,0.0003041,6]
[327696585,1716324642748,-500.0,0.0003041,6]
[327696587,1716324642759,-500.0,0.0003041,6]
[327696590,1716324642769,-992.98,0.0003041,6]
[327696592,1716324642779,-635.85,0.0003041,6]
[327696594,1716324642789,-595.99,0.0003041,6]
[327696596,1716324642799,-753.5,0.0003041,6]
[327696598,1716324642810,-500.0,0.0003041,6]
[327696600,1716324642820,-1371.67,0.0003041,6]
[327696602,1716324642831,-5142.07,0.0003041,6]
[327696604,1716324642842,-500.0,0.0003041,6]
[327696606,1716324642852,-814.12,0.0003041,6]
[327696609,1716324642862,-500.0,0.0003041,6]
[327696611,1716324642873,-682.16,0.0003041,6]
[327696613,1716324642883,-500.0,0.0003041,6]
[327696615,1716324642894,-1161.92,0.0003041,6]
[327696617,1716324642904,-628.3,0.0003041,6]
[327696619,1716324642914,-500.0,0.0003041,6]
[327696621,1716324642925,-158.49166788,0.00030538,7]
[327696623,1716324642935,-151.94,0.00030546,2]
[327696625,1716324642945,-31527.0,0.00030556,3]
[327696628,1716324642955,-248.83840231,0.00030683,4]
[327696630,1716324642967,-500.0,0.00030684,6]
[327696632,1716324642978,-500.0,0.00030684,6]
[327696634,1716324642988,-500.0,0.00030684,6]
[327696636,1716324642998,-500.0,0.00030684,6]
[327696638,1716324643009,-500.0,0.00030684,6]
[327696640,1716324643019,-500.0,0.00030684,6]
[327696642,1716324643030,-500.0,0.00030684,2]
[327696644,1716324643040,-500.0,0.00030684,6]
[327696647,1716324643050,-500.0,0.00030684,6]
[327696649,1716324643060,-500.0,0.00030684,6]
[327696651,1716324643070,-500.0,0.00030684,6]
[327696653,1716324643081,-500.0,0.00030684,6]
[327696655,1716324643091,-500.0,0.00030684,6]
[327696657,1716324643102,-500.0,0.00030684,6]
[327696659,1716324643112,-500.0,0.00030684,6]
[327696661,1716324643122,-500.0,0.00030684,6]
[327696663,1716324643133,-500.0,0.00030684,6]
[327696665,1716324643143,-500.0,0.00030684,6]
[327696667,1716324643153,-500.0,0.00030684,6]
[327696669,1716324643165,-500.0,0.00030684,6]
[327696672,1716324643177,-500.0,0.00030684,6]
[327696674,1716324643187,-500.0,0.00030684,6]
[327696676,1716324643198,-500.0,0.00030684,6]
[327696678,1716324643208,-500.0,0.00030684,6]
[327696680,1716324643218,-500.0,0.00030684,6]
[327696682,1716324643228,-500.0,0.00030684,6]
[327696684,1716324643239,-500.0,0.00030684,6]
[327696686,1716324643248,-500.0,0.00030684,6]
[327696689,1716324643259,-500.0,0.00030684,6]
[327696691,1716324643269,-512.37,0.00030684,6]
[327696693,1716324643279,-500.0,0.00030684,6]
[327696695,1716324643289,-219.04,0.00030684,6]
[327696697,1716324643299,-612.61,0.00030684,6]
[327696699,1716324643309,-697.59,0.00030684,6]
[327696701,1716324643319,-500.0,0.00030684,6]
[327696703,1716324643330,-500.0,0.00030684,6]
[327696705,1716324643340,-500.0,0.00030684,6]
[327696707,1716324643350,-500.0,0.00030684,6]
[327696709,1716324643360,-500.0,0.00030684,6]
[327696710,1716324643370,-500.0,0.00030684,6]
[327696711,1716324643380,-191.56114455,0.00030684,6]
[327696772,1716324644010,-308.43885545,0.00030684,6]
[327696774,1716324644020,-500.0,0.00030684,6]
[327696776,1716324644029,-500.0,0.00030684,6]
[327696778,1716324644039,-594.16342549,0.00030684,6]
[327696780,1716324644048,-779.86,0.00030684,6]
[327696782,1716324644057,-500.0,0.00030684,6]
[327696784,1716324644066,-500.0,0.00030684,6]
[327696786,1716324644075,-500.0,0.00030684,6]
[327696788,1716324644085,-500.0,0.00030684,6]
[327696790,1716324644094,-583.19,0.00030684,6]
[327696792,1716324644104,-500.0,0.00030684,6]
[327696794,1716324644113,-721.86,0.00030684,6]
[327696796,1716324644122,-279.28173327,0.00030684,6]
[327696822,1716324644353,-1525.00966837,0.00030111,2]
[327696825,1716324644363,-441.80826673,0.00030684,6]
[327696826,1716324644372,-75.7413645,0.00030684,6]
[327696829,1716324644383,-424.2586355,0.00030684,6]
[327696831,1716324644393,-500.0,0.00030684,6]
[327696833,1716324644401,-500.0,0.00030684,6]
[327696835,1716324644410,-500.0,0.00030684,6]
[327696837,1716324644419,-500.0,0.00030684,6]
[327696839,1716324644428,-500.0,0.00030684,6]
[327696841,1716324644438,-500.0,0.00030684,6]
[327696843,1716324644448,-500.0,0.00030684,6]
[327696844,1716324644457,-500.0,0.00030684,6]
[327696847,1716324644467,-500.0,0.00030684,6]
[327696848,1716324644476,-500.0,0.00030684,6]
[327696851,1716324644486,-576.41,0.00030684,6]
[327696852,1716324644495,-500.0,0.00030684,6]
[327696854,1716324644505,-553.38,0.00030684,6]
[327696856,1716324644523,-2042.56,0.00030684,6]
[327696858,1716324644542,-500.0,0.00030684,6]
[327696860,1716324644552,-576.85,0.00030684,6]
[327696862,1716324644561,-500.0,0.00030684,6]
[327696864,1716324644571,-540.21,0.00030684,6]
[327696866,1716324644582,-500.0,0.00030684,6]
[327696868,1716324644591,-500.0,0.00030684,6]
[327696870,1716324644600,-500.0,0.00030684,6]
[327696872,1716324644609,-500.0,0.00030684,6]
[327696874,1716324644618,-500.0,0.00030684,6]
[327696876,1716324644628,-500.0,0.00030684,6]
[327696878,1716324644637,-500.0,0.00030684,6]
[327696880,1716324644647,-500.0,0.00030684,6]
[327696882,1716324644656,-500.0,0.00030684,6]
[327696884,1716324644665,-500.0,0.00030684,6]
[327696886,1716324644674,-500.0,0.00030684,6]
[327696888,1716324644684,-500.0,0.00030684,6]
[327696890,1716324644693,-500.0,0.00030684,6]
[327696892,1716324644702,-500.0,0.00030684,6]
[327696894,1716324644712,-500.0,0.00030684,6]
[327696895,1716324644721,-500.0,0.00030684,6]
[327696896,1716324644730,-426.63131384,0.00030684,6]
[327696897,1716324644740,-500.0,0.00030684,6]
[327696898,1716324644749,-500.0,0.00030684,6]
[327696899,1716324644758,-500.0,0.00030684,6]
[327696900,1716324644769,-500.0,0.00030684,6]
[327696901,1716324644778,-765.0,0.00030684,6]
[327696902,1716324644787,-500.0,0.00030684,6]
[327696903,1716324644797,-500.0,0.00030684,6]
[327696904,1716324644806,-500.0,0.00030684,6]
[327696905,1716324644815,-500.0,0.00030684,6]
[327696906,1716324644825,-651.09,0.00030684,6]
[327696907,1716324644835,-329.74467244,0.00030684,6]
[327696908,1716324644844,-500.0,0.00030684,6]
[327696909,1716324644853,-500.0,0.00030684,6]
[327696910,1716324644862,-500.0,0.00030684,6]
[327696911,1716324644872,-562.85,0.00030684,6]
[327696912,1716324644882,-500.0,0.00030684,6]
[327696913,1716324644892,-500.0,0.00030684,6]
[327696914,1716324644901,-500.0,0.00030684,6]
[327696915,1716324644910,-500.0,0.00030684,6]
[327696916,1716324644919,-674.2,0.00030684,6]
[327696917,1716324644929,-500.0,0.00030684,6]
[327696918,1716324644938,-1020.05,0.00030684,6]
[327696919,1716324644948,-500.0,0.00030684,6]
[327696920,1716324644958,-500.0,0.00030684,6]
[327696921,1716324644967,-500.0,0.00030684,6]
[327696922,1716324644977,-523.55,0.00030684,6]
[327696923,1716324644986,-151.0,0.00030684,7]
[327696924,1716324644995,-500.0,0.00030684,6]
[327696925,1716324645004,-151.0,0.00030684,7]
[327696926,1716324645013,-537.78,0.00030684,6]
[327696927,1716324645022,-500.0,0.00030684,6]
[327696928,1716324645031,-500.0,0.00030684,6]
[327696929,1716324645041,-500.0,0.00030684,6]
[327696930,1716324645050,-500.0,0.00030684,6]
[327696931,1716324645059,-219.692212,0.00030684,7]
[327696932,1716324645068,-500.0,0.00030684,6]
[327696933,1716324645077,-500.0,0.00030684,6]
[327696934,1716324645086,-151.0,0.00030684,7]
[327696935,1716324645096,-509.01,0.00030684,6]
[327696936,1716324645105,-892.49,0.00030684,6]
[327696937,1716324645115,-500.0,0.00030684,6]
[327696938,1716324645125,-587.33689884,0.00030684,6]
[327696939,1716324645134,-500.0,0.00030684,6]
[327696940,1716324645144,-500.0,0.00030684,6]
[327696941,1716324645153,-500.0,0.00030684,6]
[327696942,1716324645162,-1430.87,0.00030684,6]
[327696943,1716324645171,-500.0,0.00030684,6]
[327696944,1716324645181,-500.0,0.00030684,6]
[327696945,1716324645190,-500.0,0.00030684,6]
[327696946,1716324645200,-500.0,0.00030684,6]
[327696947,1716324645209,-599.74,0.00030684,6]
[327696948,1716324645219,-2059.7,0.00030684,6]
[327696949,1716324645228,-500.0,0.00030684,6]
[327696950,1716324645237,-500.0,0.00030684,6]
[327696951,1716324645247,-1027.37,0.00030684,6]
[327696952,1716324645256,-730.17,0.00030684,6]
[327696953,1716324645265,-500.0,0.00030684,6]
[327696954,1716324645275,-500.0,0.00030684,6]
[327696955,1716324645285,-565.5,0.00030684,6]
[327696956,1716324645294,-500.0,0.00030684,6]
[327696957,1716324645303,-614.8,0.00030684,6]
[327696958,1716324645312,-402.68408282,0.00030684,6]
[327696959,1716324645322,-46.62298833,0.00030684,6]
[327696960,1716324645337,-453.37701167,0.00030684,6]
[327696961,1716324645346,-500.0,0.00030684,6]
[327696963,1716324645356,-500.0,0.00030684,6]
[327696965,1716324645365,-899.07,0.00030684,6]
[327696967,1716324645374,-500.0,0.00030684,6]
[327696969,1716324645383,-15966.88014352,0.00030684,6]
[327696971,1716324645395,-2470.97985648,0.00030684,6]
[327696973,1716324645404,-500.0,0.00030684,6]
[327696975,1716324645413,-779.91,0.00030684,6]
[327696977,1716324645422,-939.4,0.00030684,6]
[327696979,1716324645432,-658.17,0.00030684,6]
[327696981,1716324645441,-500.0,0.00030684,6]
[327696983,1716324645450,-193.53751036,0.00030684,6]
[327696984,1716324645463,-3145.7000845,0.00030684,6]
[327696985,1716324645474,-817.09467174,0.00030684,6]
[327696986,1716324645486,-30.4577334,0.00030684,6]
[327696987,1716324645495,-500.0,0.00030684,6]
[327696988,1716324645505,-21.17624805,0.00030684,6]
[327696989,1716324645524,-394.18780526,0.00030684,6]
[327696990,1716324645536,-203.80594669,0.00030684,6]
[327696991,1716324645545,-977.49,0.00030684,6]
[327696992,1716324645555,-5254.54,0.00030684,6]
[327696993,1716324645565,-784.93,0.00030684,6]
[327696994,1716324645575,-500.0,0.00030684,6]
[327696995,1716324645584,-500.0,0.00030684,6]
[327696996,1716324645596,-500.0,0.00030684,6]
[327696997,1716324645605,-500.0,0.00030684,6]
[327696998,1716324645614,-2924.49,0.00030684,6]
[327696999,1716324645624,-725.81,0.00030684,6]
[327697000,1716324645633,-520.39,0.00030684,6]
[327697001,1716324645643,-776.16,0.00030684,6]
[327697002,1716324645653,-544.21,0.00030684,6]
[327697003,1716324645662,-500.0,0.00030684,6]
[327697004,1716324645672,-500.0,0.00030684,6]
[327697005,1716324645681,-1412.84,0.00030684,6]
[327697006,1716324645691,-832.47,0.00030684,6]
[327697007,1716324645700,-1304.57,0.00030684,6]
[327697008,1716324645710,-502.81,0.00030684,6]
[327697009,1716324645719,-1386.27,0.00030684,6]
[327697010,1716324645728,-500.0,0.00030684,6]
[327697011,1716324645738,-1005.3,0.00030684,6]
[327697012,1716324645747,-805.08,0.00030684,6]
[327697013,1716324645757,-500.0,0.00030684,6]
[327697014,1716324645767,-500.0,0.00030684,6]
[327697015,1716324645776,-1037.09,0.00030684,6]
[327697016,1716324645785,-500.0,0.00030684,6]
[327697017,1716324645795,-1454.99,0.00030684,6]
[327697018,1716324645804,-1440.62,0.00030684,6]
[327697019,1716324645813,-500.0,0.00030684,6]
[327697020,1716324645823,-574.56,0.00030684,6]
[327697021,1716324645832,-500.0,0.00030684,6]
[327697022,1716324645841,-500.0,0.00030684,6]
[327697023,1716324645851,-734.4,0.00030684,6]
[327697024,1716324645860,-500.0,0.00030684,6]
[327697025,1716324645870,-1439.68,0.00030684,6]
[327697026,1716324645880,-500.0,0.00030684,6]
[327697027,1716324645890,-714.94,0.00030684,6]
[327697028,1716324645899,-1863.56,0.00030684,6]
[327697029,1716324645908,-500.0,0.00030684,6]
[327697030,1716324645918,-9805.87,0.00030684,6]
[327697031,1716324645927,-500.0,0.00030684,6]
[327697032,1716324645937,-838.82,0.00030684,6]
[327697033,1716324645947,-500.0,0.00030684,6]
[327697034,1716324645956,-3616.95,0.00030684,6]
[327697035,1716324645966,-696.43,0.00030684,6]
[327697036,1716324645975,-500.0,0.00030684,6]
[327697037,1716324645985,-543.51,0.00030684,6]
[327697038,1716324645994,-500.0,0.00030684,6]
[327697039,1716324646004,-500.0,0.00030684,6]
[327697040,1716324646013,-3278.78,0.00030684,6]
[327697041,1716324646022,-953.85,0.00030684,6]
[327697042,1716324646032,-1398.39,0.00030684,6]
[327697043,1716324646042,-500.0,0.00030684,6]
[327697044,1716324646051,-500.0,0.00030684,6]
[327697045,1716324646061,-500.0,0.00030684,6]
[327697046,1716324646070,-500.0,0.00030684,6]
[327697047,1716324646079,-10626.01,0.00030684,6]
[327697049,1716324646088,-500.0,0.00030684,6]
[327697051,1716324646097,-1611.84,0.00030684,6]
[327697053,1716324646107,-500.0,0.00030684,6]
[327697054,1716324646116,-500.0,0.00030684,6]
[327697055,1716324646125,-1193.5,0.00030684,6]
[327697056,1716324646134,-869.64,0.00030684,6]
[327697057,1716324646143,-500.0,0.00030684,6]
[327697058,1716324646152,-500.0,0.00030684,6]
[327697059,1716324646161,-923.44,0.00030684,6]
[327697060,1716324646170,-500.0,0.00030684,6]
[327697061,1716324646179,-500.0,0.00030684,6]
[327697062,1716324646189,-500.0,0.00030684,6]
[327697063,1716324646198,-1447.05,0.00030684,6]
[327697064,1716324646207,-541.79,0.00030684,6]
[327697065,1716324646216,-500.0,0.00030684,6]
[327697066,1716324646226,-500.0,0.00030684,6]
[327697067,1716324646235,-685.78,0.00030684,6]
[327697068,1716324646244,-500.0,0.00030684,6]
[327697069,1716324646253,-841.54,0.00030684,6]
[327697070,1716324646262,-764.15,0.00030684,6]
[327697071,1716324646271,-2967.44,0.00030684,6]
[327697072,1716324646281,-2836.3,0.00030684,6]
[327697073,1716324646290,-527.59,0.00030684,6]
[327697074,1716324646299,-500.0,0.00030684,6]
[327697075,1716324646308,-500.0,0.00030684,6]
[327697076,1716324646317,-1149.3,0.00030684,6]
[327697077,1716324646327,-500.0,0.00030684,6]
[327697078,1716324646336,-500.0,0.00030684,6]
[327697079,1716324646345,-268.28661302,0.00030684,6]
[327697080,1716324646355,-500.0,0.00030684,6]
[327697081,1716324646364,-1724.81,0.00030684,6]
[327697082,1716324646374,-500.0,0.00030684,6]
[327697083,1716324646383,-500.0,0.00030684,6]
[327697084,1716324646392,-1651.21,0.00030684,6]
[327697085,1716324646402,-500.0,0.00030684,6]
[327697086,1716324646411,-500.0,0.00030684,6]
[327697087,1716324646420,-1442.76,0.00030684,6]
[327697088,1716324646430,-500.0,0.00030684,6]
[327697089,1716324646439,-500.0,0.00030684,6]
[327697090,1716324646448,-500.0,0.00030684,6]
[327697091,1716324646458,-500.0,0.00030684,6]
[327697092,1716324646467,-500.0,0.00030684,6]
[327697093,1716324646476,-500.0,0.00030684,6]
[327697094,1716324646485,-606.41,0.00030684,6]
[327697095,1716324646494,-1027.59,0.00030684,6]
[327697096,1716324646504,-2193.01,0.00030684,6]
[327697097,1716324646514,-1211.05,0.00030684,6]
[327697098,1716324646528,-1203.43,0.00030684,6]
[327697099,1716324646537,-500.0,0.00030684,6]
[327697100,1716324646547,-3743.82,0.00030684,6]
[327697101,1716324646556,-500.0,0.00030684,6]
[327697102,1716324646569,-10059.04,0.00030684,6]
[327697103,1716324646578,-151.0,0.00030684,7]
[327697104,1716324646588,-500.0,0.00030684,6]
[327697105,1716324646600,-500.0,0.00030684,6]
[327697106,1716324646609,-500.0,0.00030684,6]
[327697107,1716324646618,-743.1216423,0.00030684,6]
[327697108,1716324647035,-1908.9483577,0.00030684,6]
[327697109,1716324647045,-1006.7,0.00030684,6]
[327697110,1716324647054,-728.42,0.00030684,6]
[327697111,1716324647064,-646.66,0.00030684,6]
[327697112,1716324647073,-500.0,0.00030684,6]
[327697113,1716324647082,-500.0,0.00030684,6]
[327697114,1716324647092,-798.14,0.00030684,6]
[327697115,1716324647101,-500.0,0.00030684,6]
[327697116,1716324647110,-392.7670423,0.00030684,6]
[327697117,1716324647187,-107.2329577,0.00030684,6]
[327697118,1716324647196,-500.0,0.00030684,6]
[327697119,1716324647206,-501.66,0.00030684,6]
[327697120,1716324647215,-2377.59807699,0.00030684,6]
[327697121,1716324647227,-380.21192301,0.00030684,6]
[327697122,1716324647237,-887.61806207,0.00030684,6]
[327697123,1716324647272,-351.98552139,0.00030684,6]
[327697124,1716324647284,-201.12641654,0.00030684,6]
[327697125,1716324647293,-500.0,0.00030684,6]
[327697126,1716324647302,-611.67,0.00030684,6]
[327697127,1716324647312,-500.0,0.00030684,6]
[327697128,1716324647321,-500.0,0.00030684,6]
[327697129,1716324647331,-500.0,0.00030684,6]
[327697130,1716324647340,-1297.08,0.00030684,6]
[327697131,1716324647350,-629.77869183,0.00030684,6]
[327697132,1716324647359,-500.0,0.00030684,6]
[327697133,1716324647368,-6825.45,0.00030684,6]
[327697134,1716324647378,-500.0,0.00030684,6]
[327697135,1716324647387,-500.0,0.00030684,6]
[327697136,1716324647396,-886.94,0.00030684,6]
[327697137,1716324647405,-500.0,0.00030684,6]
[327697138,1716324647415,-2699.22,0.00030684,6]
[327697139,1716324647424,-500.0,0.00030684,6]
[327697140,1716324647434,-151.0,0.00030684,7]
[327697141,1716324647443,-500.0,0.00030684,6]
[327697142,1716324647452,-25185.97,0.00030684,6]
[327697143,1716324647461,-500.0,0.00030684,6]
[327697144,1716324647471,-500.0,0.00030684,6]
[327697145,1716324647480,-2587.28,0.00030684,6]
[327697146,1716324647489,-500.0,0.00030684,6]
[327697147,1716324647499,-1575.23,0.00030684,6]
[327697148,1716324647513,-1635.8,0.00030684,6]
[327697149,1716324647522,-500.0,0.00030684,6]
[327697150,1716324647532,-500.0,0.00030684,6]
[327697151,1716324647542,-500.0,0.00030684,6]
[327697152,1716324647551,-992.98,0.00030684,6]
[327697153,1716324647562,-635.85,0.00030684,6]
[327697154,1716324647571,-595.99,0.00030684,6]
[327697155,1716324647580,-753.5,0.00030684,6]
[327697156,1716324647591,-500.0,0.00030684,6]
[327697157,1716324647602,-1371.67,0.00030684,6]
[327697158,1716324647612,-5142.07,0.00030684,6]
[327697159,1716324647621,-814.12,0.00030684,6]
[327697160,1716324647630,-500.0,0.00030684,6]
[327697161,1716324647640,-682.16,0.00030684,6]
[327697162,1716324647650,-151.0,0.00030684,7]
[327697163,1716324647660,-500.0,0.00030684,6]
[327697164,1716324647670,-1161.92,0.00030684,6]
[327697165,1716324647680,-500.0,0.00030684,6]
[327697166,1716324647689,-151.0,0.00030684,7]
[327697167,1716324647698,-151.0,0.00030684,7]
[327697168,1716324647708,-151.0,0.00030684,7]
[327697169,1716324647718,-495.66,0.00030712,2]
[327697170,1716324647727,-415.6,0.00030712,2]
[327697171,1716324647736,-869.81,0.00030712,2]
[327697172,1716324647746,-415.6,0.00030712,2]
[327697173,1716324647756,-869.81,0.00030712,2]
[327697174,1716324647766,-869.81,0.00030712,2]
[327697175,1716324647777,-415.6,0.00030712,2]
[327697176,1716324647787,-415.6,0.00030712,2]
[327697177,1716324647796,-869.81,0.00030712,2]
[327697178,1716324647806,-348.0,0.0003073,5]
[327697179,1716324647815,-283.03887242,0.0003083,3]
[327697180,1716324647825,-690.73,0.00030835,2]
[327697181,1716324647834,-1565.66581161,0.00030885,2]
[327697182,1716324647844,-1000.0,0.00030893,15]
[327697183,1716324647854,-500.0,0.00030893,2]
[327697184,1716324647864,-500.0,0.00030958,6]
[327697185,1716324647874,-500.0,0.00030958,6]
[327697186,1716324647884,-258.56611786,0.00030958,6]